[Event "*** Titled Tuesday Blitz"]
[Site "Chess.com"]
[Date "2021.02.16"]
[Round "4"]
[White "Kale36"]
[Black "PowerThinking2650"]
[Result "0-1"]
[WhiteElo "2217"]
[BlackElo "2420"]
[TimeControl "180+1"]
[EndTime "10:41:54 PST"]
[Termination "PowerThinking2650 won by resignation"]

1. b3 {[%clk 0:03:00.9]} 1... Nf6 {[%clk 0:02:57.8]} 2. Bb2 {[%clk 0:03:01]}
2... d5 {[%clk 0:02:58.4]} 3. e3 {[%clk 0:03:00.8]} 3... Bf5 {[%clk 0:02:58.3]}
4. Nf3 {[%clk 0:02:58.8]} 4... e6 {[%clk 0:02:56]} 5. d4 {[%clk 0:02:58.7]} 5...
Be7 {[%clk 0:02:52.2]} 6. Bd3 {[%clk 0:02:58.6]} 6... Bg6 {[%clk 0:02:49.7]} 7.
O-O {[%clk 0:02:58.5]} 7... O-O {[%clk 0:02:48.9]} 8. Nbd2 {[%clk 0:02:58.6]}
8... c5 {[%clk 0:02:48.9]} 9. Ne5 {[%clk 0:02:57.9]} 9... Nfd7 {[%clk
0:02:46.3]} 10. Nxg6 {[%clk 0:02:57.2]} 10... hxg6 {[%clk 0:02:46.6]} 11. e4
{[%clk 0:02:55.6]} 11... cxd4 {[%clk 0:02:45.3]} 12. exd5 {[%clk 0:02:53.1]}
12... e5 {[%clk 0:02:44.8]} 13. c4 {[%clk 0:02:47]} 13... dxc3 {[%clk
0:02:42.2]} 14. Bxc3 {[%clk 0:02:46.3]} 14... Nc5 {[%clk 0:01:53.7]} 15. Bc4
{[%clk 0:02:36.4]} 15... Nbd7 {[%clk 0:01:46.3]} 16. Rc1 {[%clk 0:02:17.3]}
16... Rc8 {[%clk 0:01:39.1]} 17. Bb4 {[%clk 0:02:12.2]} 17... Nb6 {[%clk
0:01:28.8]} 18. Ba5 {[%clk 0:02:10.4]} 18... Qd6 {[%clk 0:01:21.8]} 19. Bb4
{[%clk 0:01:59.3]} 19... Qd7 {[%clk 0:01:01.3]} 20. Bxc5 {[%clk 0:01:56.8]}
20... Bxc5 {[%clk 0:01:01.3]} 21. Ne4 {[%clk 0:01:57.3]} 21... Bd4 {[%clk
0:00:58]} 22. Qe2 {[%clk 0:01:37]} 22... Nxd5 {[%clk 0:00:55.7]} 23. g3 {[%clk
0:01:21.8]} 23... a6 {[%clk 0:00:52.2]} 24. a4 {[%clk 0:01:20]} 24... Nb6 {[%clk
0:00:38.6]} 25. Rfd1 {[%clk 0:01:12.4]} 25... Nxc4 {[%clk 0:00:37.7]} 26. Rxc4
{[%clk 0:01:13.3]} 26... Rxc4 {[%clk 0:00:37.2]} 27. Qxc4 {[%clk 0:01:12]} 27...
Rc8 {[%clk 0:00:37.2]} 28. Qd3 {[%clk 0:01:10]} 28... Qc6 {[%clk 0:00:31.6]} 29.
Qf3 {[%clk 0:01:02.8]} 29... f5 {[%clk 0:00:28.4]} 30. Ng5 {[%clk 0:01:01.1]}
30... e4 {[%clk 0:00:19.5]} 31. Qe2 {[%clk 0:00:57.2]} 31... Bf6 {[%clk
0:00:19.1]} 32. h4 {[%clk 0:00:55.7]} 32... Bxg5 {[%clk 0:00:19.3]} 33. hxg5
{[%clk 0:00:56.3]} 33... Qc7 {[%clk 0:00:18.4]} 34. Kg2 {[%clk 0:00:51.2]} 34...
Qc6 {[%clk 0:00:17]} 35. Rd4 {[%clk 0:00:47.3]} 35... e3+ {[%clk 0:00:15.4]} 36.
Qf3 {[%clk 0:00:39.1]} 36... e2 {[%clk 0:00:12.9]} 37. Qxc6 {[%clk 0:00:34.3]}
37... bxc6 {[%clk 0:00:11.8]} 0-1

[Event "*** Titled Tuesday Blitz"]
[Site "Chess.com"]
[Date "2021.02.16"]
[Round "4"]
[White "cstevens1"]
[Black "Galileo22"]
[Result "0-1"]
[WhiteElo "2630"]
[BlackElo "2395"]
[TimeControl "180+1"]
[EndTime "10:41:55 PST"]
[Termination "Galileo22 won by resignation"]

1. e4 {[%clk 0:03:00.9]} 1... e6 {[%clk 0:02:59.1]} 2. d4 {[%clk 0:02:57.9]}
2... d5 {[%clk 0:02:59.5]} 3. Nd2 {[%clk 0:02:58.1]} 3... a6 {[%clk 0:02:58.1]}
4. Ngf3 {[%clk 0:02:57.4]} 4... c5 {[%clk 0:02:56.7]} 5. exd5 {[%clk 0:02:56.2]}
5... Qxd5 {[%clk 0:02:55.6]} 6. Bc4 {[%clk 0:02:51.8]} 6... Qd7 {[%clk
0:02:49.5]} 7. dxc5 {[%clk 0:02:50.9]} 7... Bxc5 {[%clk 0:02:46]} 8. O-O {[%clk
0:02:50.6]} 8... Nf6 {[%clk 0:02:40.6]} 9. Qe2 {[%clk 0:02:48.2]} 9... b5 {[%clk
0:02:27.3]} 10. Bd3 {[%clk 0:02:46.6]} 10... Bb7 {[%clk 0:02:24.2]} 11. Nb3
{[%clk 0:02:45.4]} 11... Bb6 {[%clk 0:02:08.3]} 12. Be3 {[%clk 0:02:29.5]} 12...
Bxe3 {[%clk 0:02:03.6]} 13. Qxe3 {[%clk 0:02:30.4]} 13... Bd5 {[%clk 0:01:39.3]}
14. Ne5 {[%clk 0:01:43.7]} 14... Qe7 {[%clk 0:01:24]} 15. Nd4 {[%clk 0:01:36.9]}
15... Nbd7 {[%clk 0:00:58.6]} 16. f4 {[%clk 0:01:23.7]} 16... O-O {[%clk
0:00:48.9]} 17. Rae1 {[%clk 0:01:17]} 17... Rfe8 {[%clk 0:00:45.4]} 18. Qh3
{[%clk 0:01:07.8]} 18... Nf8 {[%clk 0:00:37.6]} 19. f5 {[%clk 0:00:56.8]} 19...
Qc5 {[%clk 0:00:32.9]} 20. c3 {[%clk 0:00:56.6]} 20... exf5 {[%clk 0:00:22.6]}
21. Qxf5 {[%clk 0:00:48.2]} 21... Rad8 {[%clk 0:00:12.2]} 22. Qg5 {[%clk
0:00:41.4]} 22... Ng6 {[%clk 0:00:07.9]} 23. Kh1 {[%clk 0:00:29.5]} 23... Nxe5
{[%clk 0:00:06.9]} 24. Nf5 {[%clk 0:00:23.6]} 24... Ng6 {[%clk 0:00:05.8]} 25.
Nh6+ {[%clk 0:00:09.4]} 25... Kf8 {[%clk 0:00:02.5]} 26. Qxf6 {[%clk 0:00:10.3]}
26... gxf6 {[%clk 0:00:02.1]} 27. Ng4 {[%clk 0:00:09.2]} 27... Rxe1 {[%clk
0:00:01.9]} 28. Nxf6 {[%clk 0:00:08.3]} 28... Bxg2+ {[%clk 0:00:02.8]} 29. Kxg2
{[%clk 0:00:07.7]} 29... Rxd3 {[%clk 0:00:03.7]} 30. Nxh7+ {[%clk 0:00:08.4]}
30... Kg7 {[%clk 0:00:04.1]} 31. Ng5 {[%clk 0:00:09.2]} 31... Rd2+ {[%clk
0:00:04.8]} 32. Kh3 {[%clk 0:00:08.2]} 32... Qd5 {[%clk 0:00:05.7]} 33. Ne6+
{[%clk 0:00:08.6]} 33... Qxe6+ {[%clk 0:00:06.1]} 0-1

[Event "*** Titled Tuesday Blitz"]
[Site "Chess.com"]
[Date "2021.02.16"]
[Round "4"]
[White "Pintacara"]
[Black "mirochka"]
[Result "1-0"]
[WhiteElo "2498"]
[BlackElo "2276"]
[TimeControl "180+1"]
[EndTime "10:41:56 PST"]
[Termination "Pintacara won on time"]

1. d4 {[%clk 0:03:00.9]} 1... Nf6 {[%clk 0:02:58.7]} 2. Bg5 {[%clk 0:02:59.6]}
2... c5 {[%clk 0:02:54.8]} 3. d5 {[%clk 0:02:59.4]} 3... Qb6 {[%clk 0:02:53.7]}
4. Nc3 {[%clk 0:02:58.9]} 4... Qxb2 {[%clk 0:02:49.2]} 5. Bd2 {[%clk 0:02:58.4]}
5... Qb6 {[%clk 0:02:48.6]} 6. e4 {[%clk 0:02:58.1]} 6... d6 {[%clk 0:02:48.1]}
7. f4 {[%clk 0:02:58]} 7... e6 {[%clk 0:02:43.3]} 8. Rb1 {[%clk 0:02:36.2]} 8...
Qd8 {[%clk 0:02:42.1]} 9. Bb5+ {[%clk 0:02:36.2]} 9... Bd7 {[%clk 0:02:36.8]}
10. dxe6 {[%clk 0:02:36.2]} 10... fxe6 {[%clk 0:02:35.1]} 11. Nf3 {[%clk
0:02:32.9]} 11... Bxb5 {[%clk 0:02:32.8]} 12. Rxb5 {[%clk 0:02:31.4]} 12... Qd7
{[%clk 0:02:19.1]} 13. e5 {[%clk 0:02:25.2]} 13... Nd5 {[%clk 0:02:10.5]} 14.
Nxd5 {[%clk 0:02:22.2]} 14... exd5 {[%clk 0:02:09.1]} 15. Qe2 {[%clk 0:02:21.6]}
15... Be7 {[%clk 0:01:07.8]} 16. exd6 {[%clk 0:02:21.4]} 16... Qxd6 {[%clk
0:01:08.4]} 17. Rxb7 {[%clk 0:02:20.9]} 17... Nd7 {[%clk 0:01:08.5]} 18. Qb5
{[%clk 0:01:50.2]} 18... a6 {[%clk 0:00:19.7]} 19. Qa4 {[%clk 0:01:49.8]} 19...
Rd8 {[%clk 0:00:18.3]} 20. Ne5 {[%clk 0:01:48.8]} 20... Bf6 {[%clk 0:00:18.2]}
21. Kd1 {[%clk 0:01:00.9]} 21... Bxe5 {[%clk 0:00:15]} 22. fxe5 {[%clk
0:00:56.4]} 22... Qe6 {[%clk 0:00:15]} 23. Rf1 {[%clk 0:00:45.9]} 23... Rf8
{[%clk 0:00:12.3]} 24. Rxf8+ {[%clk 0:00:41.9]} 24... Kxf8 {[%clk 0:00:13.2]}
25. Ba5 {[%clk 0:00:37.4]} 25... Re8 {[%clk 0:00:08.2]} 26. Qxd7 {[%clk
0:00:34.8]} 26... Qxd7 {[%clk 0:00:05.1]} 27. Rxd7 {[%clk 0:00:35.7]} 27... Rxe5
{[%clk 0:00:05.5]} 28. Bc7 {[%clk 0:00:31.2]} 28... Re4 {[%clk 0:00:04.9]} 29.
Bd6+ {[%clk 0:00:29.1]} 29... Ke8 {[%clk 0:00:03.4]} 30. Rxg7 {[%clk 0:00:28.2]}
30... Ra4 {[%clk 0:00:02.8]} 31. Bxc5 {[%clk 0:00:24.1]} 31... Rxa2 {[%clk
0:00:03.7]} 32. Rxh7 {[%clk 0:00:23.7]} 32... Ra5 {[%clk 0:00:02.2]} 33. Bd4
{[%clk 0:00:22.8]} 33... Ra4 {[%clk 0:00:02.1]} 34. c3 {[%clk 0:00:19.7]} 34...
Ra2 {[%clk 0:00:01.7]} 35. g4 {[%clk 0:00:19.3]} 1-0

[Event "*** Titled Tuesday Blitz"]
[Site "Chess.com"]
[Date "2021.02.16"]
[Round "4"]
[White "mary-sanna"]
[Black "AttractiveMustard"]
[Result "0-1"]
[WhiteElo "2039"]
[BlackElo "2382"]
[TimeControl "180+1"]
[EndTime "10:41:58 PST"]
[Termination "AttractiveMustard won on time"]

1. d4 {[%clk 0:03:00.9]} 1... Nf6 {[%clk 0:02:45.2]} 2. Bf4 {[%clk 0:02:59.5]}
2... d5 {[%clk 0:02:44.4]} 3. e3 {[%clk 0:02:57.8]} 3... c5 {[%clk 0:02:44.4]}
4. c3 {[%clk 0:02:57.4]} 4... Nc6 {[%clk 0:02:44]} 5. Nf3 {[%clk 0:02:54.1]}
5... Qb6 {[%clk 0:02:43.6]} 6. Qb3 {[%clk 0:02:51.9]} 6... c4 {[%clk 0:02:41.9]}
7. Qxb6 {[%clk 0:02:50.5]} 7... axb6 {[%clk 0:02:42.8]} 8. Na3 {[%clk
0:02:50.1]} 8... Ra5 {[%clk 0:02:42.6]} 9. Bc7 {[%clk 0:02:49.3]} 9... e6 {[%clk
0:02:34.3]} 10. Bxb6 {[%clk 0:02:38.9]} 10... Ra6 {[%clk 0:02:25]} 11. Bc5
{[%clk 0:02:37.7]} 11... Bxc5 {[%clk 0:02:24.9]} 12. dxc5 {[%clk 0:02:38.6]}
12... Ne4 {[%clk 0:02:20.1]} 13. Nb5 {[%clk 0:02:34.8]} 13... Ke7 {[%clk
0:02:18.7]} 14. Nd2 {[%clk 0:01:11.8]} 14... Nxc5 {[%clk 0:02:11.8]} 15. e4
{[%clk 0:01:10.4]} 15... Rd8 {[%clk 0:01:55.1]} 16. exd5 {[%clk 0:01:03.9]}
16... exd5 {[%clk 0:01:54]} 17. Be2 {[%clk 0:00:51.8]} 17... Rb6 {[%clk
0:01:35.4]} 18. b4 {[%clk 0:00:35.5]} 18... Na4 {[%clk 0:01:21.5]} 19. Nd4
{[%clk 0:00:16.7]} 19... Nxc3 {[%clk 0:01:10.2]} 20. Nxc6+ {[%clk 0:00:15.3]}
20... bxc6 {[%clk 0:01:00.2]} 21. a3 {[%clk 0:00:14.5]} 21... Bf5 {[%clk
0:00:55.4]} 22. Bf3 {[%clk 0:00:11.6]} 22... Bd3 {[%clk 0:00:50.8]} 23. Rc1
{[%clk 0:00:07.6]} 23... Na2 {[%clk 0:00:44.2]} 24. Ra1 {[%clk 0:00:07]} 24...
Nc3 {[%clk 0:00:43.2]} 25. Rc1 {[%clk 0:00:07.2]} 25... Nb5 {[%clk 0:00:40.9]}
26. a4 {[%clk 0:00:05.6]} 26... Nd4 {[%clk 0:00:40.1]} 27. a5 {[%clk 0:00:05.4]}
27... Rxb4 {[%clk 0:00:39.1]} 28. a6 {[%clk 0:00:04.8]} 28... Ra8 {[%clk
0:00:36.7]} 29. Nb1 {[%clk 0:00:04.2]} 29... Bxb1 {[%clk 0:00:34.6]} 30. Kd2
{[%clk 0:00:03]} 30... Nxf3+ {[%clk 0:00:30.7]} 31. gxf3 {[%clk 0:00:02]} 31...
Rb2+ {[%clk 0:00:30.4]} 32. Kc3 {[%clk 0:00:01.8]} 32... Rb3+ {[%clk 0:00:30.3]}
33. Kd2 {[%clk 0:00:01.3]} 33... Bd3 {[%clk 0:00:25.8]} 34. Rhe1+ {[%clk
0:00:01.9]} 34... Kd6 {[%clk 0:00:25.7]} 35. Ra1 {[%clk 0:00:01.5]} 35... Rb2+
{[%clk 0:00:25.1]} 36. Kc3 {[%clk 0:00:01.4]} 36... Rb3+ {[%clk 0:00:24.7]} 37.
Kd2 {[%clk 0:00:01.5]} 37... Kc5 {[%clk 0:00:24.5]} 38. a7 {[%clk 0:00:01.3]}
38... Rb2+ {[%clk 0:00:24.4]} 0-1

[Event "*** Titled Tuesday Blitz"]
[Site "Chess.com"]
[Date "2021.02.16"]
[Round "4"]
[White "Shahaliyev"]
[Black "tigra"]
[Result "0-1"]
[WhiteElo "2675"]
[BlackElo "2867"]
[TimeControl "180+1"]
[EndTime "10:41:59 PST"]
[Termination "tigra won by resignation"]

1. Nf3 {[%clk 0:03:00.9]} 1... d5 {[%clk 0:02:51.4]} 2. c4 {[%clk 0:03:00.5]}
2... d4 {[%clk 0:02:51.1]} 3. g3 {[%clk 0:03:00.4]} 3... Nc6 {[%clk 0:02:50.2]}
4. d3 {[%clk 0:03:00.4]} 4... e5 {[%clk 0:02:50]} 5. Bg2 {[%clk 0:03:00.7]} 5...
Nf6 {[%clk 0:02:48.5]} 6. O-O {[%clk 0:03:01.2]} 6... a5 {[%clk 0:02:47.9]} 7.
e3 {[%clk 0:03:00]} 7... Be7 {[%clk 0:02:45.1]} 8. exd4 {[%clk 0:02:52]} 8...
exd4 {[%clk 0:02:45.6]} 9. Bg5 {[%clk 0:02:50]} 9... O-O {[%clk 0:02:39]} 10.
Na3 {[%clk 0:02:33.8]} 10... Bg4 {[%clk 0:02:32.8]} 11. h3 {[%clk 0:02:25.8]}
11... Be6 {[%clk 0:02:30.9]} 12. Re1 {[%clk 0:02:24.5]} 12... h6 {[%clk
0:02:23.2]} 13. Bf4 {[%clk 0:02:22.4]} 13... Nd7 {[%clk 0:02:17.3]} 14. Nb5
{[%clk 0:02:19.7]} 14... Rc8 {[%clk 0:02:14]} 15. a3 {[%clk 0:01:56.5]} 15...
Nc5 {[%clk 0:02:11]} 16. Ne5 {[%clk 0:01:38.6]} 16... Nxe5 {[%clk 0:02:05]} 17.
Bxe5 {[%clk 0:01:39.5]} 17... Bf6 {[%clk 0:02:04.3]} 18. Nxd4 {[%clk 0:01:20.7]}
18... Bxe5 {[%clk 0:02:03.5]} 19. Nxe6 {[%clk 0:01:20.7]} 19... fxe6 {[%clk
0:02:00.1]} 20. Rxe5 {[%clk 0:01:21]} 20... Qd4 {[%clk 0:02:00.4]} 21. Re2
{[%clk 0:01:20.5]} 21... Rcd8 {[%clk 0:01:58.1]} 22. Qc2 {[%clk 0:01:04.1]}
22... a4 {[%clk 0:01:57.5]} 23. Rf1 {[%clk 0:01:00.1]} 23... Qxd3 {[%clk
0:01:50.4]} 24. Qxd3 {[%clk 0:00:41.1]} 24... Rxd3 {[%clk 0:01:50.6]} 25. Rfe1
{[%clk 0:00:42]} 25... Rd4 {[%clk 0:01:44.5]} 26. Rc2 {[%clk 0:00:41.5]} 26...
Rfd8 {[%clk 0:01:41.3]} 27. Kf1 {[%clk 0:00:37.5]} 27... Rd2 {[%clk 0:01:38]}
28. Rec1 {[%clk 0:00:29]} 28... Kf7 {[%clk 0:01:30.8]} 29. Bf3 {[%clk
0:00:29.2]} 29... Kf6 {[%clk 0:01:29.5]} 30. h4 {[%clk 0:00:29.1]} 30... Ke5
{[%clk 0:01:27.8]} 31. Ke1 {[%clk 0:00:25.7]} 31... R2d3 {[%clk 0:01:22]} 32.
Re2+ {[%clk 0:00:24.1]} 32... Kd4 {[%clk 0:01:14.9]} 33. Bg2 {[%clk 0:00:25]}
33... e5 {[%clk 0:01:13.6]} 34. Bf1 {[%clk 0:00:14.5]} 34... e4 {[%clk
0:01:07.5]} 35. Rec2 {[%clk 0:00:14.9]} 35... Rf8 {[%clk 0:00:58.4]} 36. Be2
{[%clk 0:00:14.8]} 36... c6 {[%clk 0:00:57.1]} 37. Rb1 {[%clk 0:00:14.7]} 37...
Rb3 {[%clk 0:00:55.2]} 38. Rd2+ {[%clk 0:00:14.4]} 38... Nd3+ {[%clk 0:00:53.5]}
39. Bxd3 {[%clk 0:00:13.5]} 39... exd3 {[%clk 0:00:51.7]} 40. Rc1 {[%clk
0:00:12.2]} 40... Rf5 {[%clk 0:00:51]} 41. Kd1 {[%clk 0:00:11.6]} 41... Rc5
{[%clk 0:00:49.9]} 42. Ke1 {[%clk 0:00:04.5]} 42... Rxc4 {[%clk 0:00:49.6]} 43.
Rcd1 {[%clk 0:00:05.4]} 43... Rc5 {[%clk 0:00:48.7]} 44. f3 {[%clk 0:00:05.6]}
44... Ke3 {[%clk 0:00:48]} 0-1

[Event "*** Titled Tuesday Blitz"]
[Site "Chess.com"]
[Date "2021.02.16"]
[Round "4"]
[White "JoliyRoger"]
[Black "Andrakhanova"]
[Result "0-1"]
[WhiteElo "2419"]
[BlackElo "2269"]
[TimeControl "180+1"]
[EndTime "10:42:00 PST"]
[Termination "Andrakhanova won by resignation"]

1. Nf3 {[%clk 0:02:55.1]} 1... d5 {[%clk 0:03:00]} 2. c4 {[%clk 0:02:54.5]} 2...
e6 {[%clk 0:03:00.3]} 3. cxd5 {[%clk 0:02:53.7]} 3... exd5 {[%clk 0:03:01.2]} 4.
d4 {[%clk 0:02:54.4]} 4... c6 {[%clk 0:03:01.5]} 5. Nc3 {[%clk 0:02:55.3]} 5...
Nf6 {[%clk 0:03:01.5]} 6. Bg5 {[%clk 0:02:55.8]} 6... Be7 {[%clk 0:03:01.4]} 7.
Bxf6 {[%clk 0:02:56.2]} 7... Bxf6 {[%clk 0:03:01.4]} 8. e3 {[%clk 0:02:57.1]}
8... O-O {[%clk 0:03:01.4]} 9. Bd3 {[%clk 0:02:57.6]} 9... h6 {[%clk 0:03:00.8]}
10. h3 {[%clk 0:02:56]} 10... Re8 {[%clk 0:02:59.9]} 11. O-O {[%clk 0:02:56.3]}
11... Nd7 {[%clk 0:03:00]} 12. b4 {[%clk 0:02:56.8]} 12... a6 {[%clk 0:02:59.7]}
13. a4 {[%clk 0:02:57.3]} 13... Qe7 {[%clk 0:02:51.7]} 14. b5 {[%clk 0:02:57.2]}
14... axb5 {[%clk 0:02:52.6]} 15. axb5 {[%clk 0:02:56.8]} 15... Rxa1 {[%clk
0:02:53.5]} 16. Qxa1 {[%clk 0:02:56.9]} 16... Nb6 {[%clk 0:02:46.1]} 17. Qb1
{[%clk 0:02:36.2]} 17... c5 {[%clk 0:02:37.9]} 18. Bf5 {[%clk 0:02:28.4]} 18...
c4 {[%clk 0:02:32.2]} 19. Bxc8 {[%clk 0:02:26.5]} 19... Rxc8 {[%clk 0:02:33.1]}
20. Qf5 {[%clk 0:02:23.8]} 20... g6 {[%clk 0:02:24.9]} 21. Qc2 {[%clk
0:02:04.7]} 21... Ra8 {[%clk 0:02:12.5]} 22. Rb1 {[%clk 0:02:00.7]} 22... Ra5
{[%clk 0:02:02.3]} 23. g3 {[%clk 0:01:54]} 23... Kg7 {[%clk 0:02:01.9]} 24. Kg2
{[%clk 0:01:54.3]} 24... Qd6 {[%clk 0:01:49.5]} 25. h4 {[%clk 0:01:52.3]} 25...
h5 {[%clk 0:01:48.5]} 26. Ng1 {[%clk 0:01:46.8]} 26... Be7 {[%clk 0:01:42.1]}
27. Nh3 {[%clk 0:01:44.9]} 27... Nd7 {[%clk 0:01:37.3]} 28. Qd2 {[%clk
0:01:29.4]} 28... b6 {[%clk 0:01:36.6]} 29. Nf4 {[%clk 0:01:08]} 29... Nf6
{[%clk 0:01:34.7]} 30. Qc2 {[%clk 0:01:03.4]} 30... Qd7 {[%clk 0:01:32.5]} 31.
Rb2 {[%clk 0:00:57.7]} 31... Ra3 {[%clk 0:01:30.9]} 32. Ra2 {[%clk 0:00:56.7]}
32... Rxa2 {[%clk 0:01:26.7]} 33. Qxa2 {[%clk 0:00:55.4]} 33... Bb4 {[%clk
0:01:26.9]} 34. Nce2 {[%clk 0:00:20]} 34... Qxb5 {[%clk 0:01:25.3]} 35. Qb2
{[%clk 0:00:20.4]} 35... Qa5 {[%clk 0:01:23.9]} 36. Qc2 {[%clk 0:00:19]} 36...
b5 {[%clk 0:01:18.8]} 37. g4 {[%clk 0:00:13.9]} 37... Nxg4 {[%clk 0:01:12.9]}
38. Ng3 {[%clk 0:00:14.5]} 38... Nf6 {[%clk 0:01:10.1]} 39. e4 {[%clk 0:00:12]}
39... Qa4 {[%clk 0:01:08.6]} 40. Qe2 {[%clk 0:00:10.7]} 40... dxe4 {[%clk
0:01:07]} 41. Nxe4 {[%clk 0:00:11.3]} 41... Qa8 {[%clk 0:01:06.9]} 42. f3 {[%clk
0:00:09.5]} 42... Nxe4 {[%clk 0:00:59.7]} 43. fxe4 {[%clk 0:00:10.1]} 43... Qd8
{[%clk 0:00:56.9]} 44. Kg3 {[%clk 0:00:08.2]} 44... Qxd4 {[%clk 0:00:56.3]} 45.
Qf3 {[%clk 0:00:06.6]} 45... Bd6 {[%clk 0:00:55.6]} 46. Kh3 {[%clk 0:00:04.8]}
46... Qf6 {[%clk 0:00:48.3]} 47. Kg3 {[%clk 0:00:04]} 47... Qxf4+ {[%clk
0:00:47.8]} 48. Qxf4 {[%clk 0:00:04.6]} 48... Bxf4+ {[%clk 0:00:48.7]} 49. Kxf4
{[%clk 0:00:05.5]} 49... c3 {[%clk 0:00:48.2]} 0-1

[Event "*** Titled Tuesday Blitz"]
[Site "Chess.com"]
[Date "2021.02.16"]
[Round "4"]
[White "AlexOstrovskiy"]
[Black "JiiHart"]
[Result "1-0"]
[WhiteElo "2750"]
[BlackElo "2124"]
[TimeControl "180+1"]
[EndTime "10:42:01 PST"]
[Termination "AlexOstrovskiy won on time"]

1. d4 {[%clk 0:03:00.9]} 1... Nf6 {[%clk 0:02:58.6]} 2. Bf4 {[%clk 0:02:59.7]}
2... d5 {[%clk 0:02:56.8]} 3. e3 {[%clk 0:02:59.2]} 3... Bf5 {[%clk 0:02:56.7]}
4. c4 {[%clk 0:02:59.1]} 4... c6 {[%clk 0:02:51.6]} 5. Nc3 {[%clk 0:02:59.1]}
5... e6 {[%clk 0:02:51]} 6. Nf3 {[%clk 0:02:59.1]} 6... Bd6 {[%clk 0:02:50.3]}
7. Bg5 {[%clk 0:02:58]} 7... Nbd7 {[%clk 0:02:47.9]} 8. Qb3 {[%clk 0:02:56.3]}
8... Qc7 {[%clk 0:02:46.1]} 9. h3 {[%clk 0:02:51]} 9... O-O {[%clk 0:02:42.1]}
10. Rc1 {[%clk 0:02:47.2]} 10... Qb8 {[%clk 0:02:41.1]} 11. Be2 {[%clk 0:02:45]}
11... Ne4 {[%clk 0:02:14.7]} 12. Bh4 {[%clk 0:02:32.9]} 12... Nxc3 {[%clk
0:02:04.8]} 13. bxc3 {[%clk 0:02:32]} 13... Be4 {[%clk 0:01:48.1]} 14. O-O
{[%clk 0:02:28.3]} 14... e5 {[%clk 0:01:42.7]} 15. cxd5 {[%clk 0:02:20.2]} 15...
Bxd5 {[%clk 0:01:25.5]} 16. c4 {[%clk 0:02:20.3]} 16... Bxf3 {[%clk 0:01:22.8]}
17. Bxf3 {[%clk 0:02:21.2]} 17... exd4 {[%clk 0:01:22.6]} 18. exd4 {[%clk
0:02:22.1]} 18... Bf4 {[%clk 0:01:07.1]} 19. Rb1 {[%clk 0:02:19.3]} 19... Qd6
{[%clk 0:00:44.2]} 20. Qxb7 {[%clk 0:02:13.9]} 20... Rfc8 {[%clk 0:00:14.8]} 21.
c5 {[%clk 0:02:11.5]} 21... Qc7 {[%clk 0:00:12.5]} 22. Qxc7 {[%clk 0:01:20.5]}
22... Rxc7 {[%clk 0:00:13.4]} 23. Rfe1 {[%clk 0:01:18.7]} 23... g5 {[%clk
0:00:12.2]} 24. Bg3 {[%clk 0:01:19]} 24... Bxg3 {[%clk 0:00:12.5]} 25. fxg3
{[%clk 0:01:19.9]} 25... Nf6 {[%clk 0:00:11]} 26. Re5 {[%clk 0:01:09.6]} 26...
h6 {[%clk 0:00:10.3]} 27. Rbe1 {[%clk 0:01:10.3]} 27... Kg7 {[%clk 0:00:10.2]}
28. Re7 {[%clk 0:01:10.3]} 28... Rac8 {[%clk 0:00:10.3]} 29. Kf2 {[%clk
0:01:01.9]} 29... a5 {[%clk 0:00:08.1]} 30. Rxc7 {[%clk 0:01:00.3]} 30... Rxc7
{[%clk 0:00:08.1]} 31. Re3 {[%clk 0:01:01.2]} 31... Nd5 {[%clk 0:00:05.6]} 32.
Bxd5 {[%clk 0:01:01.1]} 32... cxd5 {[%clk 0:00:06.4]} 33. Rb3 {[%clk 0:00:44.1]}
33... Ra7 {[%clk 0:00:05.3]} 34. Rb6 {[%clk 0:00:44.1]} 34... a4 {[%clk
0:00:04.1]} 35. g4 {[%clk 0:00:33.8]} 35... a3 {[%clk 0:00:04.3]} 36. Ke2 {[%clk
0:00:31.6]} 36... Re7+ {[%clk 0:00:02.3]} 37. Kd3 {[%clk 0:00:31.8]} 37... Re1
{[%clk 0:00:02]} 38. Ra6 {[%clk 0:00:30.8]} 38... Rg1 {[%clk 0:00:01.2]} 39.
Rxa3 {[%clk 0:00:30.3]} 39... Rxg2 {[%clk 0:00:01.8]} 40. Kc3 {[%clk 0:00:27.9]}
40... Rg3+ {[%clk 0:00:01.9]} 41. Kb4 {[%clk 0:00:28.2]} 1-0

[Event "*** Titled Tuesday Blitz"]
[Site "Chess.com"]
[Date "2021.02.16"]
[Round "4"]
[White "csati17"]
[Black "KetiGrant"]
[Result "0-1"]
[WhiteElo "2574"]
[BlackElo "2384"]
[TimeControl "180+1"]
[EndTime "10:42:01 PST"]
[Termination "KetiGrant won on time"]

1. c4 {[%clk 0:03:00.9]} 1... e5 {[%clk 0:02:58.1]} 2. g3 {[%clk 0:02:59.9]}
2... g6 {[%clk 0:02:57.9]} 3. Bg2 {[%clk 0:02:59.9]} 3... Bg7 {[%clk 0:02:58.4]}
4. Nc3 {[%clk 0:03:00.5]} 4... Nc6 {[%clk 0:02:57.5]} 5. e3 {[%clk 0:03:00.8]}
5... f5 {[%clk 0:02:55.6]} 6. Nge2 {[%clk 0:03:00.6]} 6... Nf6 {[%clk
0:02:52.2]} 7. O-O {[%clk 0:03:00.6]} 7... d6 {[%clk 0:02:49.9]} 8. d4 {[%clk
0:02:56]} 8... O-O {[%clk 0:02:48.1]} 9. dxe5 {[%clk 0:02:50.2]} 9... Nxe5
{[%clk 0:02:46.1]} 10. Qc2 {[%clk 0:02:35.6]} 10... c6 {[%clk 0:02:44.8]} 11.
Rd1 {[%clk 0:02:12.1]} 11... Qe7 {[%clk 0:02:41.8]} 12. b3 {[%clk 0:02:10.3]}
12... Be6 {[%clk 0:02:39.7]} 13. Ba3 {[%clk 0:02:10.4]} 13... Rad8 {[%clk
0:02:39]} 14. Rd2 {[%clk 0:02:09.6]} 14... g5 {[%clk 0:02:25.2]} 15. Rad1 {[%clk
0:02:08.9]} 15... Ne8 {[%clk 0:02:24.8]} 16. f4 {[%clk 0:02:03.6]} 16... Ng4
{[%clk 0:02:21.9]} 17. Rd3 {[%clk 0:02:03.7]} 17... Bc8 {[%clk 0:01:34.7]} 18.
h3 {[%clk 0:01:49.6]} 18... Nxe3 {[%clk 0:01:31.8]} 19. Rxe3 {[%clk 0:01:44.3]}
19... Qxe3+ {[%clk 0:01:31.6]} 20. Kh2 {[%clk 0:01:45.2]} 20... gxf4 {[%clk
0:01:28.1]} 21. gxf4 {[%clk 0:01:45.5]} 21... Rf6 {[%clk 0:01:23.1]} 22. Bc1
{[%clk 0:01:36.3]} 22... Qf2 {[%clk 0:01:19]} 23. Rf1 {[%clk 0:01:33.3]} 23...
Qh4 {[%clk 0:01:18.6]} 24. Ng3 {[%clk 0:01:10]} 24... Rg6 {[%clk 0:01:16.9]} 25.
Nce2 {[%clk 0:00:56.8]} 25... Nf6 {[%clk 0:01:12.5]} 26. Nxf5 {[%clk 0:00:56.9]}
26... Bxf5 {[%clk 0:01:06.1]} 27. Qxf5 {[%clk 0:00:56.2]} 27... Ng4+ {[%clk
0:01:05.1]} 28. Kg1 {[%clk 0:00:55.8]} 28... Rf8 {[%clk 0:01:04.2]} 29. Qd3
{[%clk 0:00:48.3]} 29... Nh6 {[%clk 0:00:51.6]} 30. f5 {[%clk 0:00:33.7]} 30...
Nxf5 {[%clk 0:00:47.1]} 31. Nf4 {[%clk 0:00:12.1]} 31... Rg3 {[%clk 0:00:43.2]}
32. Qe4 {[%clk 0:00:09.7]} 32... Qg5 {[%clk 0:00:31.3]} 33. Qe6+ {[%clk
0:00:07.5]} 33... Kh8 {[%clk 0:00:30.2]} 34. Kh2 {[%clk 0:00:07.9]} 34... Rxg2+
{[%clk 0:00:25.9]} 35. Nxg2 {[%clk 0:00:07.1]} 35... Qg3+ {[%clk 0:00:25.8]} 36.
Kg1 {[%clk 0:00:05.9]} 36... Bd4+ {[%clk 0:00:24.7]} 37. Be3 {[%clk 0:00:06]}
37... Bxe3+ {[%clk 0:00:18.1]} 0-1